bitfinex/quotes_BTCUSD_20250624
["timestamp","ask_amount","ask_price","bid_price","bid_amount"]
[1750748866068,0.0151,105840.0,105830.0,0.37479041]
[1750748866310,0.0157,105850.0,105840.0,0.1984126]
[1750748866528,0.0157,105850.0,105840.0,0.48863046]
[1750748866529,0.0151,105850.0,105840.0,0.48863046]
[1750748866750,0.0308,105860.0,105850.0,0.20784065]
[1750748867003,0.62259148,105880.0,105850.0,0.65501717]
[1750748867004,0.0162,105870.0,105850.0,0.65501717]
[1750748867222,0.0328,105870.0,105850.0,0.37424762]
[1750748867469,0.0328,105870.0,105850.0,0.39314111]
[1750748867676,0.0328,105870.0,105850.0,0.66446297]
[1750748867881,0.0328,105870.0,105860.0,0.01889277]
[1750748868094,0.0328,105870.0,105860.0,0.02833903]
[1750748868316,0.0328,105870.0,105860.0,0.20782154]
[1750748868535,0.0166,105870.0,105860.0,0.22671361]
[1750748868766,0.0166,105870.0,105860.0,0.22671379]
[1750748868976,0.0166,105870.0,105860.0,0.23615969]
[1750748869186,0.0176,105870.0,105860.0,0.21726771]
[1750748869413,0.0176,105870.0,105860.0,0.20782154]
[1750748869625,0.0176,105870.0,105860.0,0.00944643]
[1750748869834,0.0176,105870.0,105860.0,0.01889277]
[1750748870049,0.0176,105870.0,105860.0,0.0188926]
[1750748870276,0.0176,105870.0,105860.0,0.21726745]
[1750748870713,0.0176,105870.0,105860.0,0.01889277]
[1750748870933,0.0337,105870.0,105860.0,0.00944643]
[1750748871149,0.0337,105870.0,105860.0,0.21726762]
[1750748871386,0.0347,105870.0,105860.0,0.21726771]
[1750748871614,0.0186,105870.0,105860.0,0.2267137]
[1750748871836,0.002,105870.0,105860.0,0.2361596]
[1750748872102,0.002,105870.0,105860.0,0.22671317]
[1750748872364,0.002,105870.0,105860.0,0.21726727]
[1750748872630,0.0174,105870.0,105860.0,0.20782137]
[1750748872869,0.0174,105870.0,105860.0,0.21726754]
[1750748873085,0.0174,105870.0,105860.0,0.22671362]
[1750748873310,0.0174,105870.0,105860.0,0.21726754]
[1750748873733,0.0174,105870.0,105860.0,0.20782137]
[1750748874379,0.0174,105870.0,105860.0,0.22671362]
[1750748875069,0.0174,105870.0,105860.0,0.21726754]
[1750748875297,0.0174,105870.0,105860.0,0.20782137]
[1750748875715,0.0174,105870.0,105860.0,0.21726736]
[1750748875942,0.002,105870.0,105860.0,0.22671317]
[1750748876157,0.002,105870.0,105860.0,0.5074829]
[1750748876368,0.002,105870.0,105860.0,0.5397829]
[1750748877457,0.31186973,105890.0,105880.0,0.19617825]
[1750748877672,0.40737159,105890.0,105880.0,0.35285825]
[1750748878803,0.4074177,105890.0,105880.0,0.35285825]
[1750748880356,0.4094177,105890.0,105880.0,0.19617825]
[1750748880603,0.4094177,105890.0,105880.0,0.35273825]
[1750748881496,0.4094177,105890.0,105880.0,0.19617825]
[1750748882380,0.41886065,105890.0,105880.0,0.19617825]
[1750748882597,0.437747,105890.0,105880.0,0.19617825]
[1750748882821,0.44719022,105890.0,105880.0,0.19617825]
[1750748883067,6.54196929,105890.0,105880.0,0.19617825]
[1750748883296,6.67299533,105890.0,105880.0,0.19617825]
[1750748883514,6.70128691,105890.0,105880.0,0.19617825]
[1750748883698,6.72999042,105890.0,105880.0,0.19617825]
[1750748883960,6.7454569,105890.0,105880.0,0.19617825]
[1750748884187,6.72578275,105890.0,105880.0,0.19617825]
[1750748884412,6.76990975,105890.0,105880.0,0.19617825]
[1750748884626,6.7953533,105890.0,105880.0,0.19617825]
[1750748884840,6.83313344,105890.0,105880.0,0.19617825]
[1750748885302,6.84013344,105890.0,105880.0,0.19617825]
[1750748886566,6.82246846,105890.0,105880.0,0.19617825]
[1750748886755,6.84012851,105890.0,105880.0,0.19617825]
[1750748887674,6.80234837,105890.0,105880.0,0.19617825]
[1750748888971,6.84012851,105890.0,105880.0,0.19617825]
[1750748889466,5.43483546,105870.0,105860.0,0.001]
[1750748889685,5.56102191,105870.0,105860.0,0.001]
[1750748889893,5.85123647,105870.0,105860.0,0.001]
[1750748890329,5.82413159,105870.0,105860.0,0.001]
[1750748890748,0.77513159,105870.0,105860.0,0.001]
[1750748891168,1.06534615,105870.0,105860.0,0.001]
[1750748891375,1.07479116,105870.0,105860.0,0.001]
[1750748891813,1.08423634,105870.0,105860.0,0.001]
[1750748892028,6.13423634,105870.0,105860.0,0.001]
[1750748892237,6.12479116,105870.0,105860.0,0.001]
[1750748892450,6.15854758,105870.0,105860.0,0.001]
[1750748892656,6.15033634,105870.0,105860.0,0.001]
[1750748893068,6.13144615,105870.0,105860.0,0.001]
[1750748893315,6.13144606,105870.0,105860.0,0.001]
[1750748893529,0.79123159,105870.0,105860.0,0.001]
[1750748893965,0.81012134,105870.0,105860.0,0.001]
[1750748894649,1.10978153,105870.0,105860.0,0.001]
[1750748895374,6.15978153,105870.0,105860.0,0.001]
[1750748895591,6.15033617,105870.0,105860.0,0.001]
[1750748895803,6.15978135,105870.0,105860.0,0.001]
[1750748896017,6.14089107,105870.0,105860.0,0.001]
[1750748896444,6.15033625,105870.0,105860.0,0.001]
[1750748896936,6.12200132,105870.0,105860.0,0.001]
[1750748897183,0.77513159,105870.0,105860.0,0.001]
[1750748899934,0.78457651,105870.0,105860.0,0.001]
[1750748900151,0.78457642,105870.0,105860.0,0.001]
[1750748902450,0.77513159,105870.0,105860.0,0.001]
[1750748903994,0.75863159,105870.0,105860.0,0.001]
[1750748904266,0.75863159,105870.0,105860.0,0.0172]
[1750748904267,0.77493159,105870.0,105860.0,0.0172]
[1750748904484,0.43493159,105870.0,105860.0,0.001]
[1750748905819,0.43493159,105870.0,105860.0,0.0169]
[1750748906017,0.43493159,105870.0,105860.0,0.001]
[1750748907560,0.49416186,105870.0,105860.0,0.001]
[1750748907768,0.77493159,105870.0,105860.0,0.001]
[1750748907982,0.77493159,105870.0,105860.0,0.01760138]
[1750748908407,0.49416186,105870.0,105860.0,0.01760138]
[1750748908624,0.49416186,105870.0,105860.0,0.03300138]
[1750748908835,0.77493159,105870.0,105860.0,0.03300138]
[1750748909048,0.78437633,105870.0,105860.0,0.01760138]
[1750748909486,0.77253159,105870.0,105860.0,0.01760138]
[1750748910821,1.08789134,105870.0,105860.0,0.01760138]
[1750748911034,1.09733661,105870.0,105860.0,0.01760138]
[1750748911661,6.17170892,105870.0,105860.0,0.01760138]
[1750748911886,6.18115428,105870.0,105860.0,0.01760138]
[1750748912105,6.17170892,105870.0,105860.0,0.01760138]
[1750748912317,5.87204882,105870.0,105860.0,0.01760138]
[1750748912521,5.91362592,105870.0,105860.0,0.01760138]
[1750748912734,6.19439565,105870.0,105860.0,0.01760138]
[1750748912939,6.19439556,105870.0,105860.0,0.01760138]
[1750748913153,6.29931164,105870.0,105860.0,0.01760138]
[1750748913364,6.20384169,105870.0,105860.0,0.01760138]
[1750748913576,6.2038416,105870.0,105860.0,0.01760138]
[1750748913995,6.39275314,105870.0,105860.0,0.01760138]
[1750748914657,6.38330813,105870.0,105860.0,0.01760138]
[1750748914859,6.19439721,105870.0,105860.0,0.01760138]
[1750748915078,6.18495167,105870.0,105860.0,0.01760138]
[1750748915289,6.18495123,105870.0,105860.0,0.01760138]
[1750748915503,6.19439659,105870.0,105860.0,0.01760138]
[1750748916060,6.19439661,105870.0,105860.0,0.01760138]
[1750748916283,6.18495125,105870.0,105860.0,0.01760138]
[1750748916509,6.15980607,105870.0,105860.0,0.01760138]
[1750748916733,5.88848152,105870.0,105860.0,0.01760138]
[1750748916984,6.05436688,105870.0,105860.0,0.01760138]
[1750748917227,6.32569125,105870.0,105860.0,0.01760138]
[1750748917870,6.32569117,105870.0,105860.0,0.01760138]
[1750748918088,6.03543616,105870.0,105860.0,0.01760138]
[1750748918325,6.04488108,105870.0,105860.0,0.01760138]
[1750748918552,6.09389128,105870.0,105860.0,0.01760138]
[1750748918781,6.350288,105870.0,105860.0,0.01760138]
[1750748919011,6.38410504,105870.0,105860.0,0.01760138]
[1750748919227,6.40030504,105870.0,105860.0,0.01760138]
[1750748919485,6.36073994,105870.0,105860.0,0.01760138]
[1750748920020,6.55905278,105870.0,105860.0,0.01760138]
[1750748921754,6.55905148,105870.0,105860.0,0.01760138]
[1750748921966,6.55805148,105870.0,105860.0,0.01760138]
[1750748922184,6.64100209,105870.0,105860.0,0.01760138]
[1750748922375,7.25693232,105870.0,105860.0,0.01760138]
[1750748922837,7.28139429,105870.0,105860.0,0.01760138]
[1750748923508,7.28139429,105870.0,105830.0,0.0166]
[1750748923509,0.56153946,105840.0,105830.0,0.0166]
[1750748923728,5.46755159,105840.0,105830.0,0.0166]
[1750748923938,5.46755159,105840.0,105830.0,0.032]
[1750748923939,0.41755159,105840.0,105830.0,0.032]
[1750748924588,0.41755159,105840.0,105830.0,0.0166]
[1750748924800,0.41755159,105840.0,105830.0,0.01806147]
[1750748925037,0.57399159,105840.0,105830.0,0.01806147]
[1750748925249,0.41755159,105840.0,105830.0,0.01806147]
[1750748925472,0.41755159,105840.0,105830.0,0.01906147]
[1750748925661,0.57403159,105840.0,105830.0,0.01906147]
[1750748925881,0.41760159,105840.0,105830.0,0.01906147]
[1750748926065,0.92352901,105840.0,105830.0,0.01906147]
[1750748926272,0.75760159,105840.0,105830.0,0.01906147]
[1750748926483,0.91412314,105840.0,105830.0,0.01906147]
[1750748926636,0.92357064,105840.0,105830.0,0.01906147]
[1750748926839,0.76713064,105840.0,105830.0,0.01906147]
[1750748927042,0.93346899,105840.0,105830.0,0.01906147]
[1750748927243,0.94291667,105840.0,105830.0,0.01906147]
[1750748927455,1.34400421,105840.0,105830.0,0.00266147]
[1750748927656,6.39392275,105840.0,105830.0,0.00157992]
[1750748927860,6.39492257,105840.0,105830.0,0.00157992]
[1750748928060,0.48777021,105840.0,105830.0,0.03147992]
[1750748928534,0.48877021,105840.0,105830.0,0.03147992]
[1750748929169,0.48777021,105840.0,105830.0,0.03147992]
[1750748929379,0.10649021,105840.0,105830.0,0.03247992]
[1750748929804,0.14677021,105840.0,105830.0,0.03247992]
[1750748931509,0.14677021,105840.0,105830.0,0.03347992]
[1750748931852,0.10549021,105840.0,105830.0,0.03347992]
[1750748932065,0.14677021,105840.0,105830.0,0.03347992]
[1750748932715,0.42753994,105840.0,105830.0,0.03347992]
[1750748934991,0.14677021,105840.0,105830.0,0.03347992]
[1750748935196,0.42753994,105840.0,105830.0,0.03347992]
[1750748936006,5e-05,105840.0,105830.0,0.03347992]
[1750748936220,5e-05,105840.0,105830.0,0.52212993]
[1750748936431,5e-05,105840.0,105830.0,0.54102717]
[1750748936655,5e-05,105840.0,105830.0,0.53157868]
[1750748937317,5e-05,105840.0,105830.0,0.54102735]
[1750748937744,5e-05,105840.0,105830.0,0.53157868]
[1750748937958,5e-05,105840.0,105830.0,0.52212993]
[1750748938381,5e-05,105840.0,105830.0,0.51268109]
[1750748938605,5e-05,105840.0,105830.0,0.31424965]
[1750748938820,5e-05,105840.0,105830.0,0.03347992]
[1750748939888,5e-05,105840.0,105830.0,0.04292903]
[1750748940131,5e-05,105840.0,105830.0,0.03347992]
[1750748940317,5e-05,105840.0,105830.0,0.04292903]
[1750748941049,5e-05,105840.0,105830.0,0.03347992]
[1750748942772,5e-05,105840.0,105830.0,0.04292903]
[1750748943482,5e-05,105840.0,105830.0,0.05237805]
[1750748943949,5e-05,105840.0,105830.0,0.03347992]
[1750748944171,5e-05,105840.0,105830.0,0.04292903]
[1750748944613,5e-05,105840.0,105830.0,0.03347992]
[1750748945053,5e-05,105840.0,105830.0,0.18987992]
[1750748945273,5e-05,105840.0,105830.0,0.19932903]
[1750748945706,5e-05,105840.0,105830.0,0.20877805]
[1750748946146,5e-05,105840.0,105830.0,0.67853011]
[1750748946360,5e-05,105840.0,105830.0,0.68797895]
[1750748946573,5e-05,105840.0,105830.0,0.67853011]
[1750748946787,5e-05,105840.0,105830.0,0.68797904]
[1750748947923,5e-05,105840.0,105830.0,0.53157904]
[1750748948126,5e-05,105840.0,105830.0,0.68797904]
[1750748948337,5e-05,105840.0,105830.0,0.67853011]
[1750748948979,5e-05,105840.0,105830.0,0.47064965]
[1750748949225,5e-05,105840.0,105830.0,0.66908091]
[1750748949440,5e-05,105840.0,105830.0,0.66908109]
[1750748949661,5e-05,105840.0,105830.0,0.68797886]
[1750748949873,5e-05,105840.0,105830.0,0.7068761]
[1750748954861,5e-05,105840.0,105830.0,0.81691881]
[1750748955102,5e-05,105840.0,105830.0,0.52670059]
[1750748955318,5e-05,105840.0,105830.0,0.81691828]
[1750748955761,5e-05,105840.0,105830.0,0.70687557]
[1750748956190,5e-05,105840.0,105830.0,0.6879785]
[1750748956411,5e-05,105840.0,105830.0,0.03347992]
[1750748956629,5e-05,105840.0,105830.0,0.17443992]
[1750748957281,5e-05,105840.0,105830.0,0.01807992]
[1750748957725,5e-05,105840.0,105830.0,0.17443992]
[1750748959026,5e-05,105840.0,105830.0,0.01807992]
[1750748959027,0.01625,105840.0,105830.0,0.01807992]
[1750748959235,0.40762159,105840.0,105830.0,0.00257992]
[1750748959449,0.44878159,105840.0,105830.0,0.00257992]
[1750748960345,0.44878159,105840.0,105830.0,0.00057992]
[1750748960562,0.45822909,105840.0,105830.0,0.00057992]
[1750748960780,0.46967677,105840.0,105830.0,0.00057992]
[1750748961723,0.46022909,105840.0,105830.0,0.00057992]
[1750748961940,0.46967677,105840.0,105830.0,0.00057992]
[1750748962152,0.46022909,105840.0,105830.0,0.00057992]
[1750748962589,0.45078159,105840.0,105830.0,0.00057992]
[1750748963451,0.46022918,105840.0,105830.0,0.00057992]
[1750748963676,1.51391623,105840.0,105830.0,0.00057992]
[1750748963896,1.44521964,105840.0,105830.0,0.00057992]
[1750748964137,6.49521964,105840.0,105830.0,0.00057992]
[1750748964360,6.52363564,105840.0,105830.0,0.00057992]
[1750748964586,6.54628662,105840.0,105830.0,0.00057992]
[1750748964800,6.52363564,105840.0,105830.0,0.00057992]
[1750748965021,6.33467117,105840.0,105830.0,0.00057992]
[1750748965483,6.52363564,105840.0,105830.0,0.00057992]
[1750748965941,5.96209618,105840.0,105830.0,0.00057992]
[1750748966161,6.52363564,105840.0,105830.0,0.00057992]
[1750748966671,6.04445322,105840.0,105830.0,0.00057992]
[1750748966884,6.24286591,105840.0,105830.0,0.00057992]
[1750748967104,6.52363564,105840.0,105830.0,0.00057992]
[1750748967782,6.33467117,105840.0,105830.0,0.00057992]
[1750748968012,6.52363564,105840.0,105830.0,0.00057992]
[1750748969624,6.51418796,105840.0,105830.0,0.00057992]
[1750748969834,6.32522349,105840.0,105830.0,0.00057992]
[1750748970307,6.51418796,105840.0,105830.0,0.00057992]
[1750748971904,6.04445322,105840.0,105830.0,0.00057992]
[1750748972152,6.05390126,105840.0,105830.0,0.00057992]
[1750748972393,6.02935269,105840.0,105830.0,0.00057992]
[1750748972621,0.99824868,105840.0,105830.0,0.00057992]
[1750748972827,0.9982485,105840.0,105830.0,0.00057992]
[1750748973487,0.98880055,105840.0,105830.0,0.00057992]
[1750748973914,0.99824859,105840.0,105830.0,0.00057992]
[1750748974464,0.98880055,105840.0,105830.0,0.00057992]
[1750748974890,0.99824859,105840.0,105830.0,0.00057992]
[1750748975100,0.98880055,105840.0,105830.0,0.00057992]
[1750748975317,0.96990501,105840.0,105830.0,0.00057992]
[1750748975540,0.94148901,105840.0,105830.0,0.00057992]
[1750748976159,0.9509366,105840.0,105830.0,0.00057992]
[1750748976367,0.96038437,105840.0,105830.0,0.00057992]
[1750748976571,0.7945766,105840.0,105830.0,0.00057992]
[1750748977195,0.8229926,105840.0,105830.0,0.00057992]
[1750748977425,0.80402437,105840.0,105830.0,0.00057992]
[1750748977635,0.7945766,105840.0,105830.0,0.00057992]
[1750748978085,0.79457651,105840.0,105830.0,0.00057992]
[1750748978299,0.8040241,105840.0,105830.0,0.00057992]
[1750748978529,0.81347187,105840.0,105830.0,0.00057992]
[1750748978758,0.53277528,105840.0,105830.0,0.00057992]
[1750748978982,0.78789759,105840.0,105830.0,0.01637992]
[1750748979255,0.75948159,105840.0,105830.0,0.01637992]
[1750748979489,0.75948159,105840.0,105830.0,0.03237992]
[1750748979490,0.13871186,105840.0,105830.0,0.03237992]
[1750748979725,0.47871186,105840.0,105830.0,0.03237992]
[1750748979980,0.13871186,105840.0,105830.0,0.03237992]
[1750748980204,0.47871186,105840.0,105830.0,0.03237992]
[1750748981081,0.75948159,105840.0,105830.0,0.03237992]
[1750748981271,0.75948159,105840.0,105830.0,0.01637992]
[1750748982868,1.09054659,105840.0,105830.0,0.00057992]
[1750748983073,1.09999445,105840.0,105830.0,0.00057992]
[1750748983280,0.79397686,105840.0,105830.0,0.00057992]
[1750748983869,0.80342472,105840.0,105830.0,0.00057992]
[1750748984311,0.79397669,105840.0,105830.0,0.00057992]
[1750748984515,0.78452901,105840.0,105830.0,0.00057992]
[1750748984727,0.77508159,105840.0,105830.0,0.00057992]
[1750748985447,0.79178159,105840.0,105830.0,0.00057992]
[1750748986135,0.79178159,105840.0,105830.0,0.01657992]
[1750748986343,0.80122909,105840.0,105830.0,0.01657992]
[1750748987318,0.81067677,105840.0,105830.0,0.01657992]
[1750748987853,0.81067669,105840.0,105830.0,0.00057992]
[1750748988054,0.8106766,105840.0,105830.0,0.00057992]
[1750748988511,0.82012428,105840.0,105830.0,0.00057992]
[1750748988708,0.82957214,105840.0,105830.0,0.00057992]
[1750748989364,0.82012428,105840.0,105830.0,0.00057992]
[1750748989741,0.85224813,105840.0,105830.0,0.00057992]
[1750748990121,0.84280036,105840.0,105830.0,0.00057992]
[1750748990508,0.85224813,105840.0,105830.0,0.00057992]
[1750748991560,1.14910972,105840.0,105830.0,0.00057992]
[1750748992401,0.85889213,105840.0,105830.0,0.00057992]
[1750748992952,0.85889339,105840.0,105830.0,0.00057992]
[1750748993611,0.84944562,105840.0,105830.0,0.00057992]
[1750748994043,0.85889348,105840.0,105830.0,0.00057992]
[1750748994255,0.84944562,105840.0,105830.0,0.00057992]
[1750748994950,0.85889348,105840.0,105830.0,0.00057992]
[1750748995140,0.84944562,105840.0,105830.0,0.00057992]
[1750748995455,0.85889348,105840.0,105830.0,0.00057992]
[1750748995887,0.8494471,105840.0,105830.0,0.00057992]
[1750748996105,1.13021683,105840.0,105830.0,0.00057992]
[1750748996440,0.8494471,105840.0,105830.0,0.00057992]
[1750748997118,0.8327471,105840.0,105830.0,0.00057992]
[1750748997561,1.11351683,105840.0,105830.0,0.00057992]
[1750748998298,1.10406915,105840.0,105830.0,0.00057992]
[1750748998741,1.10406942,105840.0,105830.0,0.00057992]
[1750748999632,1.11956942,105840.0,105830.0,0.00057992]
[1750748999846,1.12901728,105840.0,105830.0,0.00057992]
[1750749000055,1.11956942,105840.0,105830.0,0.00057992]
[1750749001043,1.12901719,105840.0,105830.0,0.00057992]
[1750749002087,1.13846514,105840.0,105830.0,0.00057992]
[1750749002341,6.60565297,105840.0,105830.0,0.00057992]
[1750749002565,1.07959975,105820.0,105810.0,0.0002]
[1750749002802,1.07959975,105820.0,105810.0,0.00028692]
[1750749002803,6.53109137,105820.0,105810.0,0.00028692]
[1750749003031,6.62398679,105820.0,105810.0,0.00028692]
[1750749003264,6.74788274,105820.0,105810.0,0.00028692]
[1750749003482,6.78566288,105820.0,105810.0,0.00028692]
[1750749003719,6.88833787,105820.0,105810.0,0.00028692]
[1750749003936,1.14544908,105810.0,105800.0,0.0002]
[1750749004156,6.41633654,105810.0,105800.0,0.00033841]
[1750749004391,6.53626846,105810.0,105800.0,0.00013841]
[1750749004834,6.69254846,105810.0,105800.0,0.00013841]
[1750749005058,6.70025719,105810.0,105800.0,0.00013841]
[1750749005768,6.19119799,105790.0,105780.0,0.0083418]
[1750749005995,6.48409985,105790.0,105780.0,0.0083879]
[1750749006220,6.5787694,105790.0,105780.0,0.0083879]
[1750749006444,6.60421295,105790.0,105780.0,0.0083879]
[1750749006660,6.6348538,105790.0,105780.0,0.0083879]
[1750749007070,6.65931577,105790.0,105780.0,0.0083879]
[1750749007216,6.73854558,105790.0,105780.0,0.0083879]
[1750749007631,5.86690806,105780.0,105770.0,0.0002]
[1750749007838,6.87028269,105780.0,105770.0,0.00024627]
[1750749008017,6.89286906,105780.0,105770.0,0.00024627]
[1750749008222,6.89948572,105780.0,105770.0,0.00024627]
[1750749009640,6.89286906,105780.0,105770.0,0.00024627]
[1750749009860,6.89947161,105780.0,105770.0,0.00024627]
[1750749010062,6.89286906,105780.0,105770.0,0.00024627]
[1750749010272,6.89947159,105780.0,105770.0,0.00024627]
[1750749010473,6.89286906,105780.0,105770.0,0.00024627]
[1750749010693,6.90294424,105780.0,105770.0,0.00024627]
[1750749011544,6.90394424,105780.0,105770.0,0.00024627]
[1750749011748,6.88135787,105780.0,105770.0,0.00024627]
[1750749013311,6.96046434,105780.0,105770.0,0.00024627]
[1750749013772,7.24123421,105780.0,105770.0,0.00024627]
[1750749014004,7.25653421,105780.0,105770.0,1e-08]
[1750749014216,7.25653451,105780.0,105770.0,1e-08]
[1750749015269,7.25653451,105780.0,105760.0,0.0002]
[1750749015270,0.60308467,105770.0,105760.0,0.0002]
[1750749015482,6.68516195,105770.0,105760.0,0.0002]
[1750749015928,6.68516195,105770.0,105740.0,0.0002]
[1750749015929,0.20803718,105750.0,105740.0,0.0002]
[1750749016147,5.71990016,105740.0,105730.0,0.4998]
[1750749016419,6.50822552,105740.0,105730.0,0.4996]
[1750749016639,6.608015,105740.0,105730.0,0.4996]
[1750749016855,6.480144,105740.0,105730.0,0.4996]
[1750749017053,6.65508982,105740.0,105730.0,0.4996]
[1750749017266,6.50311977,105740.0,105730.0,0.4996]
[1750749017462,6.69830043,105740.0,105730.0,0.4996]
[1750749017722,6.69843857,105740.0,105730.0,0.4996]
[1750749018357,6.5768519,105740.0,105730.0,0.4996]
[1750749018558,6.5298519,105740.0,105730.0,0.5006]
[1750749018768,6.6071472,105740.0,105730.0,0.5006]
[1750749019221,6.6111472,105740.0,105730.0,0.5006]
[1750749020776,6.64014686,105740.0,105730.0,0.5006]
[1750749023021,6.64960375,105740.0,105730.0,0.5006]
[1750749023250,6.1288067,105740.0,105730.0,0.5006]
[1750749023482,0.20120866,105740.0,105730.0,0.531]
[1750749023705,0.17275966,105740.0,105730.0,0.531]
[1750749023936,0.76907245,105740.0,105730.0,0.531]
[1750749024233,1.10907245,105740.0,105730.0,0.531]
[1750749024441,1.08007279,105740.0,105730.0,0.531]
[1750749024652,1.07607279,105740.0,105730.0,0.531]
[1750749024862,1.11328697,105740.0,105730.0,0.531]
[1750749025065,1.10383062,105740.0,105730.0,0.531]
[1750749025268,1.11328697,105740.0,105730.0,0.531]
[1750749025515,1.11028697,105740.0,105730.0,0.53]
[1750749025728,1.10183062,105740.0,105730.0,0.533]
[1750749026164,1.07407279,105740.0,105730.0,0.533]
[1750749026582,1.07407279,105740.0,105730.0,0.538]
[1750749027019,0.87659279,105740.0,105730.0,0.538]
[1750749027199,1.07407279,105740.0,105730.0,0.538]
[1750749029619,1.10300105,105740.0,105730.0,0.538]
[1750749030033,0.90552105,105740.0,105730.0,0.538]
[1750749030243,1.10300105,105740.0,105730.0,0.538]
[1750749032704,0.66304826,105740.0,105730.0,0.538]
[1750749032869,1.10300105,105740.0,105730.0,0.538]
[1750749036451,0.87659279,105740.0,105730.0,0.538]
[1750749036675,1.07399279,105740.0,105730.0,0.538]
[1750749037604,1.08061976,105740.0,105730.0,0.538]
[1750749037834,0.88321976,105740.0,105730.0,0.538]
[1750749038059,1.07399279,105740.0,105730.0,0.538]
[1750749038332,1.08061976,105740.0,105730.0,0.538]
[1750749040351,0.92207905,105740.0,105730.0,0.538]
[1750749041564,0.92208253,105740.0,105730.0,0.538]
[1750749042819,0.09664,105740.0,105730.0,0.76499219]
[1750749043024,0.00113814,105740.0,105730.0,0.76499219]
[1750749043230,0.00113814,105740.0,105730.0,0.76499228]
[1750749043455,0.00113814,105740.0,105730.0,0.7744497]
[1750749043863,0.00013814,105740.0,105730.0,0.7714497]
[1750749044074,0.00013814,105740.0,105730.0,0.7664497]
[1750749044229,0.00213814,105740.0,105730.0,0.7844497]
[1750749044866,0.00213814,105740.0,105730.0,1.06586178]
[1750749045452,0.39815293,105770.0,105760.0,0.0306]
[1750749045453,0.34,105770.0,105760.0,0.0306]
[1750749045655,0.43550186,105770.0,105760.0,0.18692]
[1750749046956,0.71691394,105770.0,105760.0,0.18792]
[1750749049236,0.43550186,105770.0,105760.0,0.18792]
[1750749050135,0.34,105770.0,105760.0,0.37702741]
[1750749050371,0.34,105770.0,105760.0,0.38648278]
[1750749050593,0.04108,105780.0,105770.0,0.18908953]
[1750749050772,0.13672034,105780.0,105770.0,0.22008953]
[1750749051451,0.13672034,105780.0,105770.0,0.031]
[1750749051452,0.04121848,105780.0,105770.0,0.031]
[1750749051678,0.32263056,105780.0,105770.0,0.18728]
[1750749051902,0.00013848,105780.0,105770.0,0.18728]
[1750749052118,0.00013848,105780.0,105770.0,0.39527784]
[1750749052510,0.00013848,105780.0,105770.0,0.40027793]
[1750749052893,0.00013848,105780.0,105770.0,0.40873195]
[1750749053092,0.00013848,105780.0,105770.0,0.24299793]
[1750749053456,0.00013848,105780.0,105770.0,0.389824]
[1750749053818,0.00013848,105780.0,105770.0,0.392824]
[1750749054020,0.00013848,105780.0,105770.0,0.40227829]
[1750749054226,0.00013848,105780.0,105770.0,0.38336953]
[1750749054390,0.00013848,105780.0,105770.0,0.392824]
[1750749055000,0.00013848,105780.0,105770.0,0.38336953]
[1750749055779,0.00013848,105780.0,105770.0,0.038]
[1750749055996,0.28155056,105780.0,105770.0,0.19424]
[1750749056435,0.71705242,105780.0,105770.0,0.008]
[1750749056719,0.87329242,105780.0,105770.0,0.008]
[1750749057003,1.1709045,105780.0,105770.0,0.008]
[1750749057299,0.88949242,105780.0,105770.0,0.008]
[1750749057508,0.88954242,105780.0,105770.0,0.008]
[1750749058367,1.03131529,105780.0,105770.0,0.008]
[1750749058833,0.43569034,105780.0,105770.0,0.008]
[1750749059047,0.43569034,105780.0,105770.0,0.0241]
[1750749059916,0.43569034,105780.0,105770.0,0.008]
[1750749060133,0.45069034,105780.0,105770.0,0.008]
[1750749060346,0.87507529,105780.0,105770.0,0.008]
[1750749060791,0.89007529,105780.0,105770.0,0.008]
[1750749062784,0.43569034,105780.0,105770.0,0.008]
[1750749063005,0.89057529,105780.0,105770.0,0.008]
[1750749064176,6.14113432,105780.0,105770.0,0.008]
[1750749064615,6.11277529,105780.0,105770.0,0.008]
[1750749064847,5.94057529,105780.0,105770.0,0.008]
[1750749065094,0.89057529,105780.0,105770.0,0.005]
[1750749065313,0.34,105770.0,105750.0,0.0316]
[1750749065539,0.43550186,105770.0,105760.0,0.0316]
[1750749066202,0.43550186,105770.0,105760.0,0.0156]
[1750749066448,0.87488681,105770.0,105760.0,0.0156]
[1750749066682,0.90054048,105770.0,105750.0,0.0177]
[1750749066905,0.87488681,105760.0,105750.0,0.0177]
[1750749067350,1.03108681,105760.0,105750.0,0.002]
[1750749067568,1.04638681,105760.0,105750.0,0.002]
[1750749068054,1.05584146,105760.0,105740.0,0.0314]
[1750749068498,1.06529629,105760.0,105740.0,0.0164]
[1750749068727,0.82042495,105750.0,105740.0,0.0164]
[1750749068943,0.91592681,105750.0,105740.0,0.0164]
[1750749069183,0.91592681,105750.0,105730.0,0.5318]
[1750749069407,0.53488681,105740.0,105730.0,0.5155]
[1750749070767,0.09550186,105740.0,105730.0,0.51596242]
[1750749070974,0.1233795,105740.0,105730.0,0.51596242]
[1750749071184,0.2795795,105740.0,105730.0,0.51596242]
[1750749071865,0.2796295,105740.0,105730.0,0.51596242]
[1750749072088,0.2796295,105740.0,105730.0,0.51996242]
[1750749072309,0.2796295,105740.0,105730.0,0.50406242]
[1750749072532,0.2960295,105740.0,105730.0,0.50406242]
[1750749072756,0.73541445,105740.0,105730.0,0.50406242]
[1750749073007,1.08487089,105740.0,105730.0,0.50406242]
[1750749073221,1.0848708,105740.0,105730.0,0.50406242]
[1750749073859,1.07541445,105740.0,105730.0,0.50406242]
[1750749074335,1.0848708,105740.0,105730.0,0.50406242]
[1750749074552,1.07541445,105740.0,105730.0,0.50406242]
[1750749074973,1.05901445,105740.0,105730.0,0.50406242]
[1750749075186,1.05901445,105740.0,105730.0,0.51616242]
[1750749075389,1.05901445,105740.0,105730.0,0.51816242]
[1750749075626,1.06847089,105740.0,105730.0,0.51816242]
[1750749075820,1.05901445,105740.0,105730.0,0.50206242]
[1750749076046,1.07501445,105740.0,105730.0,0.50206242]
[1750749077033,1.07501445,105740.0,105730.0,0.50406242]
[1750749077667,0.6196295,105740.0,105730.0,0.50406242]
[1750749077866,0.90281445,105740.0,105730.0,0.52016242]
[1750749078067,1.10009445,105740.0,105730.0,0.52016242]
[1750749078366,0.6607095,105740.0,105730.0,0.52016242]
[1750749079654,0.6617095,105740.0,105730.0,0.52016242]
[1750749079863,0.5054695,105740.0,105730.0,0.52016242]
[1750749080490,0.78687475,105740.0,105730.0,0.52016242]
[1750749080908,0.5054695,105740.0,105730.0,0.52016242]
[1750749081109,0.78687475,105740.0,105730.0,0.52016242]
[1750749091126,0.80327475,105740.0,105730.0,0.50406242]